fUSD/lending_fUSD_20241224
["ID","MTS","AMOUNT","RATE_DAILY","PERIOD"]
[346502838,1735011119102,-1150.83837441,0.00015945,2]
[346502839,1735011119112,-639366.22849718,0.00015961,2]
[346502840,1735011119122,-151.0,0.00015962,2]
[346502841,1735011119132,-1000.0,0.00015987,2]
[346502842,1735011119142,-6954.98405443,0.00016,2]
[346502843,1735011119152,-5000.0,0.00016,2]
[346502844,1735011119161,-5000.0,0.00016,3]
[346502845,1735011119170,-35000.0,0.00016,2]
[346502846,1735011119179,-3869.6965613,0.00016,2]
[346502847,1735011119189,-2000.0,0.00016,2]
[346502848,1735011119199,-151.0,0.00016,2]
[346502849,1735011119208,-2000.0,0.0001601,2]
[346502850,1735011119218,-3677.27776,0.0001602,2]
[346502851,1735011119228,-770.84,0.00016027,2]
[346502852,1735011119237,-437.17,0.00016027,2]
[346502853,1735011119247,-437.17,0.00016027,2]
[346502854,1735011119257,-770.84,0.00016027,2]
[346502855,1735011119267,-770.84,0.00016027,2]
[346502856,1735011119276,-437.17,0.00016027,2]
[346502857,1735011119286,-437.17,0.00016027,2]
[346502858,1735011119295,-689.14,0.00016027,2]
[346502859,1735011119305,-1150.83837441,0.00016027,2]
[346502860,1735011119315,-6631.00342435,0.00016062,2]
[346502861,1735011119326,-1150.83837441,0.00016082,2]
[346502862,1735011119336,-38495.0,0.000161,2]
[346502863,1735011119345,-6252.3,0.00016116,2]
[346502864,1735011119355,-1000.0,0.00016129,2]
[346502865,1735011119365,-180.9617382,0.00016148,2]
[346502866,1735011119374,-151.0,0.00016158,2]
[346502867,1735011119384,-1852.82,0.00016158,2]
[346502868,1735011119394,-500.0,0.00016158,2]
[346502869,1735011119403,-500.0,0.00016158,2]
[346502870,1735011119413,-2606.93,0.00016158,2]
[346502871,1735011119423,-2999.55,0.00016158,2]
[346502872,1735011119433,-1157.43,0.00016158,2]
[346502873,1735011119442,-606.11,0.00016158,2]
[346502874,1735011119451,-6426.45,0.00016158,2]
[346502875,1735011119461,-1172.56,0.00016158,2]
[346502876,1735011119470,-4243.49,0.00016158,2]
[346502877,1735011119480,-1763.65,0.00016158,2]
[346502878,1735011119490,-1114.010296,0.00016158,2]
[346502879,1735011119499,-1609.76,0.00016158,2]
[346502880,1735011119509,-1255.913597,0.00016158,2]
[346502881,1735011119519,-3445.2,0.00016158,2]
[346502882,1735011119529,-2865.43,0.00016158,2]
[346502883,1735011119538,-9494.21,0.00016158,2]
[346502884,1735011119548,-875.1,0.00016158,2]
[346502885,1735011119557,-9217.19,0.00016158,2]
[346502886,1735011119567,-2293.91,0.00016158,2]
[346502887,1735011119579,-1133.56,0.00016158,2]
[346502888,1735011119589,-500.0,0.00016158,2]
[346502889,1735011119599,-1695.02,0.00016158,2]
[346502890,1735011119608,-1707.6,0.00016158,2]
[346502891,1735011119619,-2242.13,0.00016158,2]
[346502892,1735011119879,-2349.54,0.00016158,2]
[346502893,1735011119895,-1817.06,0.00016158,2]
[346502894,1735011119906,-3224.69,0.00016158,2]
[346502895,1735011119916,-1391.02,0.00016158,2]
[346502896,1735011119926,-2776.88,0.00016158,2]
[346502897,1735011119936,-3101.23,0.00016158,2]
[346502898,1735011119945,-4039.9,0.00016158,2]
[346502899,1735011119954,-2093.55,0.00016158,2]
[346502900,1735011119964,-7546.19,0.00016158,2]
[346502901,1735011119973,-500.0,0.00016158,2]
[346502902,1735011119983,-6150.66,0.00016158,2]
[346502903,1735011119992,-824.32,0.00016158,2]
[346502904,1735011120002,-1376.04,0.0001616,2]
[346502905,1735011120012,-500.0,0.0001616,2]
[346502906,1735011120022,-500.0,0.0001616,2]
[346502907,1735011120032,-603.13,0.0001616,2]
[346502908,1735011120042,-500.0,0.0001616,2]
[346502909,1735011120051,-500.0,0.0001616,2]
[346502910,1735011120061,-714.04,0.0001616,2]
[346502911,1735011120071,-518.45,0.0001616,2]
[346502912,1735011120081,-623.37,0.0001616,2]
[346502913,1735011120091,-500.0,0.0001616,2]
[346502914,1735011120100,-638.22,0.0001616,2]
[346502915,1735011120110,-500.0,0.0001616,2]
[346502916,1735011120120,-500.0,0.0001616,2]
[346502917,1735011120129,-803.42,0.0001616,2]
[346502918,1735011120139,-500.0,0.0001616,2]
[346502919,1735011120149,-500.0,0.0001616,2]
[346502920,1735011120159,-833.06,0.0001616,2]
[346502921,1735011120168,-792.49,0.0001616,2]
[346502922,1735011120177,-500.0,0.0001616,2]
[346502923,1735011120187,-764.06,0.0001616,2]
[346502924,1735011120197,-500.0,0.0001616,2]
[346502925,1735011120206,-500.0,0.0001616,2]
[346502926,1735011120216,-500.0,0.0001616,2]
[346502927,1735011120226,-500.0,0.0001616,2]
[346502928,1735011120235,-925.7,0.0001616,2]
[346502929,1735011120246,-500.0,0.0001616,2]
[346502930,1735011120256,-647.99466185,0.0001616,2]
[346502931,1735011120266,-500.0,0.0001616,2]
[346502932,1735011120276,-633.33,0.0001616,2]
[346502933,1735011120287,-500.0,0.0001616,2]
[346502934,1735011120297,-500.0,0.0001616,2]
[346502935,1735011120307,-559.32,0.0001616,2]
[346502936,1735011120317,-500.0,0.0001616,2]
[346502937,1735011120329,-500.0,0.0001616,2]
[346502938,1735011120339,-500.0,0.0001616,2]
[346502939,1735011120349,-756.47,0.0001616,2]
[346502940,1735011120359,-500.0,0.0001616,2]
[346502941,1735011120369,-500.0,0.0001616,2]
[346502942,1735011120380,-500.0,0.0001616,2]
[346502943,1735011120390,-500.0,0.0001616,2]
[346502944,1735011120400,-652.18,0.0001616,2]
[346502945,1735011120411,-500.0,0.0001616,2]
[346502946,1735011120421,-500.0,0.0001616,2]
[346502947,1735011120431,-500.0,0.0001616,2]
[346502948,1735011120442,-1162.34,0.0001616,2]
[346502949,1735011120452,-657.02,0.0001616,2]
[346502950,1735011120462,-500.0,0.0001616,2]
[346502951,1735011120472,-500.0,0.0001616,2]
[346502952,1735011120481,-500.0,0.0001616,2]
[346502953,1735011120491,-750.75,0.0001616,2]
[346502954,1735011120502,-843.1,0.0001616,2]
[346502955,1735011120512,-2974.82,0.0001616,2]
[346502956,1735011120523,-1035.17,0.0001616,2]
[346502957,1735011120533,-500.0,0.0001616,2]
[346502958,1735011120544,-1473.91,0.0001616,2]
[346502959,1735011120554,-12237.72,0.0001616,2]
[346502960,1735011120565,-724.91,0.0001616,2]
[346502961,1735011120578,-1085.64,0.0001616,2]
[346502962,1735011120589,-2487.66,0.0001616,2]
[346502963,1735011120599,-855.98,0.0001616,2]
[346502964,1735011120610,-772.32,0.0001616,2]
[346502965,1735011120621,-1607.65,0.0001616,2]
[346502966,1735011120631,-1245.31,0.0001616,2]
[346502967,1735011120641,-2261.57,0.0001616,2]
[346502968,1735011120650,-793.8,0.0001616,2]
[346502969,1735011120661,-500.0,0.0001616,2]
[346502970,1735011120671,-566.83,0.0001616,2]
[346502971,1735011120681,-1841.26,0.0001616,2]
[346502972,1735011120690,-500.0,0.0001616,2]
[346502973,1735011120700,-1675.73,0.0001616,2]
[346502974,1735011120710,-500.0,0.0001616,2]
[346502975,1735011120719,-1457.13,0.0001616,2]
[346502976,1735011120728,-500.0,0.0001616,2]
[346502977,1735011120738,-1294.02,0.0001616,2]
[346502978,1735011120749,-1344.13,0.0001616,2]
[346502979,1735011120760,-1732.9,0.0001616,2]
[346502980,1735011120770,-500.0,0.0001616,2]
[346502981,1735011120779,-913.87,0.0001616,2]
[346502982,1735011120789,-1087.59,0.0001616,2]
[346502983,1735011120799,-500.0,0.0001616,2]
[346502984,1735011120808,-1777.07,0.0001616,2]
[346502985,1735011120818,-500.0,0.0001616,2]
[346502986,1735011120829,-500.0,0.0001616,2]
[346502987,1735011120839,-1013.56,0.0001616,2]
[346502988,1735011120848,-1109.62,0.0001616,2]
[346502989,1735011120858,-3611.54,0.0001616,2]
[346502990,1735011120868,-500.0,0.0001616,2]
[346502991,1735011120877,-500.0,0.0001616,2]
[346502992,1735011120887,-700.34,0.0001616,2]
[346502993,1735011120896,-1340.51,0.0001616,2]
[346502994,1735011120906,-1798.91,0.0001616,2]
[346502995,1735011120916,-500.0,0.0001616,2]
[346502996,1735011120925,-1108.03,0.0001616,2]
[346502997,1735011120935,-6420.88,0.0001616,2]
[346502998,1735011120945,-1834.74,0.0001616,2]
[346502999,1735011120954,-1753.2,0.0001616,2]
[346503000,1735011120963,-3473.97,0.0001616,2]
[346503001,1735011120973,-500.0,0.0001616,2]
[346503002,1735011120982,-1098.98,0.0001616,2]
[346503003,1735011120991,-718.65770088,0.00016161,2]
[346503004,1735011121000,-421.47241582,0.00016161,2]
[346503005,1735011121010,-500.0,0.00016161,2]
[346503006,1735011121019,-500.0,0.00016161,2]
[346503007,1735011121029,-500.0,0.00016161,2]
[346503008,1735011121038,-500.0,0.00016161,2]
[346503009,1735011121048,-500.0,0.00016161,2]
[346503010,1735011121057,-500.0,0.00016161,2]
[346503011,1735011121066,-500.0,0.00016161,2]
[346503012,1735011121077,-500.0,0.00016161,2]
[346503013,1735011121086,-500.0,0.00016161,2]
[346503014,1735011121095,-500.0,0.00016161,2]
[346503015,1735011121108,-500.0,0.00016161,2]
[346503016,1735011121118,-500.0,0.00016161,2]
[346503017,1735011121127,-500.0,0.00016161,2]
[346503018,1735011121136,-500.0,0.00016161,2]
[346503019,1735011121145,-500.0,0.00016161,2]
[346503020,1735011121154,-500.0,0.00016161,2]
[346503021,1735011121163,-500.0,0.00016161,2]
[346503022,1735011121172,-500.0,0.00016161,2]
[346503023,1735011121182,-500.0,0.00016161,2]
[346503024,1735011121191,-500.0,0.00016161,2]
[346503025,1735011121201,-500.0,0.00016161,2]
[346503026,1735011121211,-171.66037741,0.00016161,2]
[346503027,1735011121221,-500.0,0.00016161,2]
[346503028,1735011121231,-500.0,0.00016161,2]
[346503029,1735011121240,-500.0,0.00016161,2]
[346503030,1735011121249,-500.0,0.00016161,2]
[346503031,1735011121259,-500.0,0.00016161,2]
[346503032,1735011121269,-500.0,0.00016161,2]
[346503033,1735011121278,-500.0,0.00016161,2]
[346503034,1735011121288,-500.0,0.00016161,2]
[346503035,1735011121297,-500.0,0.00016161,2]
[346503036,1735011121307,-500.0,0.00016161,2]
[346503037,1735011121317,-500.0,0.00016161,2]
[346503038,1735011121329,-500.0,0.00016161,2]
[346503039,1735011121340,-500.0,0.00016161,2]
[346503040,1735011121350,-500.0,0.00016161,2]
[346503041,1735011121360,-500.0,0.00016161,2]
[346503042,1735011121371,-500.0,0.00016161,2]
[346503043,1735011121381,-500.0,0.00016161,2]
[346503044,1735011121392,-345.803207,0.00016161,2]
[346503045,1735011121402,-500.0,0.00016161,2]
[346503046,1735011121413,-500.0,0.00016161,2]
[346503047,1735011121424,-500.0,0.00016161,2]
[346503048,1735011121434,-500.0,0.00016161,2]
[346503049,1735011121445,-500.0,0.00016161,2]
[346503050,1735011121455,-500.0,0.00016161,2]
[346503051,1735011121467,-500.0,0.00016161,2]
[346503052,1735011121480,-500.0,0.00016161,2]
[346503053,1735011121490,-500.0,0.00016161,2]
[346503054,1735011121500,-417.92532141,0.00016161,2]
[346503055,1735011121509,-500.0,0.00016161,2]
[346503056,1735011121519,-500.0,0.00016161,2]
[346503057,1735011121529,-609.95100703,0.00016161,2]
[346503058,1735011121539,-500.0,0.00016161,2]
[346503059,1735011121548,-500.0,0.00016161,2]
[346503060,1735011121558,-500.0,0.00016161,2]
[346503061,1735011121568,-500.0,0.00016161,2]
[346503062,1735011121583,-500.0,0.00016161,2]
[346503063,1735011121593,-500.0,0.00016161,2]
[346503064,1735011121602,-500.0,0.00016161,2]
[346503065,1735011121612,-500.0,0.00016161,2]
[346503066,1735011121622,-2197.64,0.00016161,2]
[346503067,1735011121632,-500.0,0.00016161,2]
[346503068,1735011121641,-500.0,0.00016161,2]
[346503069,1735011121651,-500.0,0.00016161,2]
[346503070,1735011121662,-500.0,0.00016161,2]
[346503071,1735011121671,-500.0,0.00016161,2]
[346503072,1735011121681,-924.29,0.00016161,2]
[346503073,1735011121690,-500.0,0.00016161,2]
[346503074,1735011121700,-3800.89,0.00016161,2]
[346503075,1735011121709,-500.0,0.00016161,2]
[346503076,1735011121719,-500.0,0.00016161,2]
[346503077,1735011121729,-4111.27,0.00016161,2]
[346503078,1735011121738,-3362.87,0.00016161,2]
[346503079,1735011121747,-500.0,0.00016161,2]
[346503080,1735011121757,-500.0,0.00016161,2]
[346503081,1735011121766,-500.0,0.00016161,2]
[346503082,1735011121775,-500.0,0.00016161,2]
[346503083,1735011121785,-500.0,0.00016161,2]
[346503084,1735011121795,-613.98215391,0.00016161,2]
[346503085,1735011121804,-944.42,0.00016161,2]
[346503086,1735011121814,-500.0,0.00016161,2]
[346503087,1735011121824,-500.0,0.00016161,2]
[346503088,1735011121834,-578.45,0.00016161,2]
[346503089,1735011121843,-500.0,0.00016161,2]
[346503090,1735011121852,-1032.77,0.00016161,2]
[346503091,1735011121861,-3197.19,0.00016161,2]
[346503092,1735011121871,-500.0,0.00016161,2]
[346503093,1735011121880,-500.0,0.00016161,2]
[346503094,1735011121889,-500.0,0.00016161,2]
[346503095,1735011121899,-500.0,0.00016161,2]
[346503096,1735011121909,-893.07,0.00016161,2]
[346503097,1735011121919,-500.0,0.00016161,2]
[346503098,1735011121928,-500.0,0.00016161,2]
[346503099,1735011121937,-831.96,0.00016161,2]
[346503100,1735011121947,-1264.9,0.00016161,2]
[346503101,1735011121956,-500.0,0.00016161,2]
[346503102,1735011121965,-500.0,0.00016161,2]
[346503103,1735011121975,-500.0,0.00016161,2]
[346503104,1735011121984,-3791.3,0.00016161,2]
[346503105,1735011121993,-500.0,0.00016161,2]
[346503106,1735011122003,-1468.04,0.00016161,2]
[346503107,1735011122012,-618.66,0.00016161,2]
[346503108,1735011122021,-500.0,0.00016161,2]
[346503109,1735011122031,-500.0,0.00016161,2]
[346503110,1735011122040,-500.0,0.00016161,2]
[346503111,1735011122050,-880.68,0.00016161,2]
[346503112,1735011122059,-4498.81,0.00016161,2]
[346503113,1735011122068,-980.14,0.00016161,2]
[346503114,1735011122080,-500.0,0.00016161,2]
[346503115,1735011122090,-845.95,0.00016161,2]
[346503116,1735011122099,-768.63,0.00016161,2]
[346503117,1735011122109,-1633.61,0.00016161,2]
[346503118,1735011122118,-10724.41,0.00016161,2]
[346503119,1735011122128,-500.0,0.00016161,2]
[346503120,1735011122137,-1907.04,0.00016161,2]
[346503121,1735011122147,-3409.97,0.00016161,2]
[346503122,1735011122156,-500.0,0.00016161,2]
[346503123,1735011122165,-500.0,0.00016161,2]
[346503124,1735011122174,-500.0,0.00016161,2]
[346503125,1735011122183,-3144.7,0.00016161,2]
[346503126,1735011122193,-7767.4,0.00016161,2]
[346503127,1735011122202,-3102.39,0.00016161,2]
[346503128,1735011122211,-2500.86,0.00016161,2]
[346503129,1735011122221,-16025.73,0.00016161,2]
[346503130,1735011122231,-500.0,0.00016161,2]
[346503131,1735011122240,-6082.71,0.00016161,2]
[346503132,1735011122250,-500.0,0.00016161,2]
[346503133,1735011122259,-500.0,0.00016161,2]
[346503134,1735011122268,-2316.02,0.00016161,2]
[346503135,1735011122277,-1193.06,0.00016161,2]
[346503136,1735011122365,-500.0,0.00016161,2]
[346503137,1735011122375,-500.0,0.00016161,2]
[346503138,1735011122384,-500.0,0.00016161,2]
[346503139,1735011122393,-500.0,0.00016161,2]
[346503140,1735011122403,-500.0,0.00016161,2]
[346503141,1735011122416,-500.0,0.00016161,2]
[346503142,1735011122425,-599.65,0.00016161,2]
[346503143,1735011122435,-500.0,0.00016161,2]
[346503144,1735011122444,-500.0,0.00016161,2]
[346503145,1735011122453,-500.0,0.00016162,2]
[346503146,1735011122462,-500.0,0.00016162,2]
[346503147,1735011122472,-500.0,0.00016162,2]
[346503148,1735011122481,-500.0,0.00016162,2]
[346503149,1735011122490,-500.0,0.00016162,2]
[346503150,1735011122500,-500.0,0.00016162,2]
[346503151,1735011122510,-500.0,0.00016162,2]
[346503152,1735011122519,-511.03,0.00016162,2]
[346503153,1735011122529,-500.0,0.00016162,2]
[346503154,1735011122542,-500.0,0.00016162,2]
[346503155,1735011122552,-500.0,0.00016162,2]
[346503156,1735011122562,-500.0,0.00016162,2]
[346503157,1735011122574,-500.0,0.00016162,2]
[346503158,1735011122587,-500.0,0.00016162,2]
[346503159,1735011122597,-500.0,0.00016162,2]
[346503160,1735011122607,-500.0,0.00016162,2]
[346503161,1735011122617,-500.0,0.00016162,2]
[346503162,1735011122627,-500.0,0.00016162,2]
[346503163,1735011122637,-500.0,0.00016162,2]
[346503164,1735011122647,-500.0,0.00016162,2]
[346503165,1735011122658,-500.0,0.00016162,2]
[346503166,1735011122667,-500.0,0.00016162,2]
[346503167,1735011122677,-500.0,0.00016162,2]
[346503168,1735011122687,-500.0,0.00016162,2]
[346503169,1735011122696,-500.0,0.00016162,2]
[346503170,1735011122705,-500.0,0.00016162,2]
[346503171,1735011122715,-500.0,0.00016162,2]
[346503172,1735011122725,-500.0,0.00016162,2]
[346503173,1735011122735,-500.0,0.00016162,2]
[346503174,1735011122745,-511.22,0.00016162,2]
[346503175,1735011122754,-500.0,0.00016162,2]
[346503176,1735011122763,-500.0,0.00016162,2]
[346503177,1735011122774,-963.35,0.00016162,2]
[346503178,1735011122783,-500.0,0.00016162,2]
[346503179,1735011122793,-817.97,0.00016162,2]
[346503180,1735011122802,-1137.67,0.00016162,2]
[346503181,1735011122811,-916.16,0.00016162,2]
[346503182,1735011122820,-500.0,0.00016162,2]
[346503183,1735011122830,-876.13,0.00016162,2]
[346503184,1735011122840,-500.0,0.00016162,2]
[346503185,1735011122849,-850.87,0.00016162,2]
[346503186,1735011122858,-809.33,0.00016162,2]
[346503187,1735011122867,-576.68,0.00016162,2]
[346503188,1735011122877,-504.00435612,0.00016162,2]
[346503189,1735011122886,-680.75,0.00016162,2]
[346503190,1735011122895,-1535.16,0.00016162,2]
[346503191,1735011122904,-500.0,0.00016162,2]
[346503192,1735011122913,-500.0,0.00016162,2]
[346503193,1735011122923,-835.68,0.00016162,2]
[346503194,1735011122932,-500.0,0.00016162,2]
[346503195,1735011122942,-11706.4,0.00016162,2]
[346503196,1735011122951,-659.12,0.00016162,2]
[346503197,1735011122960,-500.0,0.00016162,2]
[346503198,1735011122969,-653.62,0.00016162,2]
[346503199,1735011122979,-534.76,0.00016162,2]
[346503200,1735011122988,-1707.85,0.00016162,2]
[346503201,1735011122997,-500.0,0.00016162,2]
[346503202,1735011123006,-1321.6,0.00016162,2]
[346503203,1735011123016,-980.51,0.00016162,2]
[346503204,1735011123025,-1216.74,0.00016162,2]
[346503205,1735011123035,-941.42,0.00016162,2]
[346503206,1735011123044,-2484.72,0.00016162,2]
[346503207,1735011123053,-824.25,0.00016162,2]
[346503208,1735011123063,-766.19,0.00016162,2]
[346503209,1735011123073,-500.0,0.00016162,2]
[346503210,1735011123082,-500.0,0.00016162,2]
[346503211,1735011123092,-1000.0,0.00016162,2]
[346503212,1735011123102,-500.0,0.00016162,2]
[346503213,1735011123111,-1396.04,0.00016162,2]
[346503214,1735011123120,-500.0,0.00016162,2]
[346503215,1735011123130,-635.05,0.00016162,2]
[346503216,1735011123140,-789.1,0.00016162,2]
[346503217,1735011123149,-500.0,0.00016162,2]
[346503218,1735011123159,-2682.71,0.00016162,2]
[346503219,1735011123168,-500.0,0.00016162,2]
[346503220,1735011123178,-940.58,0.00016162,2]
[346503221,1735011123188,-669.82,0.00016162,2]
[346503222,1735011123198,-1941.26,0.00016162,2]
[346503223,1735011123210,-575.68,0.00016162,2]
[346503224,1735011123222,-151.0,0.00016162,2]
[346503225,1735011123232,-1285.44,0.00016162,2]
[346503226,1735011123242,-734.43,0.00016162,2]
[346503227,1735011123251,-500.0,0.00016162,2]
[346503228,1735011123261,-1247.11,0.00016162,2]
[346503229,1735011123271,-500.0,0.00016162,2]
[346503230,1735011123280,-1338.65,0.00016162,2]
[346503231,1735011123289,-1230.35,0.00016162,2]
[346503232,1735011123299,-500.0,0.00016162,2]
[346503233,1735011123310,-543.55,0.00016162,2]
[346503234,1735011123323,-500.0,0.00016162,2]
[346503235,1735011123334,-649.45,0.00016162,2]
[346503236,1735011123344,-500.0,0.00016162,2]
[346503237,1735011123354,-500.0,0.00016163,2]
[346503238,1735011123363,-500.0,0.00016163,2]
[346503239,1735011123372,-500.0,0.00016163,2]
[346503240,1735011123382,-500.0,0.00016163,2]
[346503241,1735011123391,-500.0,0.00016163,2]
[346503242,1735011123401,-500.0,0.00016163,2]
[346503243,1735011123411,-500.0,0.00016163,2]
[346503244,1735011123420,-500.0,0.00016163,2]
[346503245,1735011123430,-500.0,0.00016163,2]
[346503246,1735011123440,-500.0,0.00016163,2]
[346503247,1735011123449,-500.0,0.00016163,2]
[346503248,1735011123459,-500.0,0.00016163,2]
[346503249,1735011123468,-500.0,0.00016163,2]
[346503250,1735011123478,-500.0,0.00016163,2]
[346503251,1735011123487,-500.0,0.00016163,2]
[346503252,1735011123497,-500.0,0.00016163,2]
[346503253,1735011123506,-500.0,0.00016163,2]
[346503254,1735011123516,-500.0,0.00016163,2]
[346503255,1735011123525,-283.5159378,0.00016163,2]
[346503256,1735011123535,-500.0,0.00016163,2]
[346503257,1735011123544,-500.0,0.00016163,2]
[346503258,1735011123554,-500.0,0.00016163,2]
[346503259,1735011123563,-500.0,0.00016163,2]
[346503260,1735011123573,-500.0,0.00016163,2]
[346503261,1735011123586,-500.0,0.00016163,2]
[346503262,1735011123596,-500.0,0.00016163,2]
[346503263,1735011123606,-500.0,0.00016163,2]
[346503264,1735011123616,-500.0,0.00016163,2]
[346503265,1735011123628,-500.0,0.00016163,2]
[346503266,1735011123638,-509.34,0.00016163,2]
[346503267,1735011123648,-500.0,0.00016163,2]
[346503268,1735011123658,-500.0,0.00016163,2]
[346503269,1735011123667,-500.0,0.00016163,2]
[346503270,1735011123677,-500.0,0.00016163,2]
[346503271,1735011123687,-500.0,0.00016163,2]
[346503272,1735011123696,-594.29,0.00016163,2]
[346503273,1735011123706,-500.0,0.00016163,2]
[346503274,1735011123715,-670.25,0.00016163,2]
[346503275,1735011123725,-553.58,0.00016163,2]
[346503276,1735011123734,-1203.72,0.00016163,2]
[346503277,1735011123743,-500.0,0.00016163,2]
[346503278,1735011123753,-552.4,0.00016163,2]
[346503279,1735011123762,-500.0,0.00016163,2]
[346503280,1735011123772,-500.0,0.00016163,2]
[346503281,1735011123782,-500.0,0.00016163,2]
[346503282,1735011123792,-627.9,0.00016163,2]
[346503283,1735011123803,-500.0,0.00016163,2]
[346503284,1735011123812,-500.0,0.00016163,2]
[346503285,1735011123822,-500.0,0.00016163,2]
[346503286,1735011123832,-500.0,0.00016163,2]
[346503287,1735011123841,-500.0,0.00016163,2]
[346503288,1735011123850,-1878.0,0.00016164,2]
[346503289,1735011123860,-1075.0,0.00016164,2]
[346503290,1735011123869,-2048.58,0.00016164,2]
[346503291,1735011123879,-1779.8,0.00016164,2]
[346503292,1735011123889,-1311.88,0.00016164,2]
[346503293,1735011123898,-3042.34,0.00016164,2]
[346503294,1735011123908,-4145.26,0.00016164,2]
[346503295,1735011123918,-2510.92,0.00016164,2]
[346503296,1735011123928,-2165.74,0.00016164,2]
[346503297,1735011123938,-4218.72,0.00016164,2]
[346503298,1735011123948,-2191.99,0.00016164,2]
[346503299,1735011123957,-2002.38,0.00016164,2]
[346503300,1735011123967,-500.0,0.00016164,2]
[346503301,1735011123976,-683.71,0.00016164,2]
[346503302,1735011123986,-500.0,0.00016164,2]
[346503303,1735011123996,-500.0,0.00016164,2]
[346503304,1735011124005,-18977.0,0.00016164,2]
[346503305,1735011124014,-760.03,0.00016164,2]
[346503306,1735011124023,-1641.11,0.00016164,2]
[346503307,1735011124034,-500.0,0.00016164,2]
[346503308,1735011124043,-500.0,0.00016164,2]
[346503309,1735011124052,-497.88176941,0.00016164,2]
[346503310,1735011124061,-1150.83837441,0.00016164,2]
[346503311,1735011124070,-1082.31050602,0.00016166,2]
[346503312,1735011124080,-500.0,0.00016173,2]
[346503313,1735011124090,-553.36804499,0.00016205,2]
[346503314,1735011124099,-180.550495,0.00016234,2]
[346503315,1735011124109,-1150.83837441,0.00016247,2]
[346503316,1735011124119,-500.0,0.00016298,2]
[346503317,1735011124128,-1031.09862646,0.00016325,2]
[346503318,1735011124138,-1150.83837441,0.00016329,2]
[346503319,1735011124147,-200.0,0.0001634,2]
[346503320,1735011124156,-150.0,0.00016348,2]
[346503321,1735011124165,-150.0,0.00016348,2]
[346503322,1735011124175,-150.0,0.00016348,2]
[346503323,1735011124185,-150.0,0.00016348,2]
[346503324,1735011124194,-150.82688537,0.00016348,2]
[346503325,1735011124205,-150.9196073,0.00016348,2]
[346503326,1735011124215,-150.0,0.00016348,2]
[346503327,1735011124224,-150.0,0.00016348,2]
[346503328,1735011124234,-150.0,0.00016374,2]
[346503329,1735011124243,-492.63,0.00016378,2]
[346503330,1735011124253,-1150.83837441,0.00016384,2]
[346503331,1735011124263,-150.0,0.00016386,2]
[346503332,1735011124274,-150.0,0.000164,2]
[346503333,1735011124283,-1082.31050602,0.00016412,2]
[346503334,1735011124293,-150.0,0.00016413,2]
[346503335,1735011124303,-150.0,0.00016424,2]
[346503336,1735011124313,-150.0,0.00016426,2]
[346503337,1735011124323,-1852.82,0.00016432,2]